Cogmind - Beta 9.4 *** ADVENTURER MODE // 2020.02.27 @ 18:39:42 // Winter2019/RPGLIKE Player: Pitter Result: Destroyed by G-67 Veteran with Plasma Rifle Performance ------------- Evolutions (1) 500 Regions Visited (5) 1000 Robots Destroyed (33) 165 Value Destroyed (794) 794 Prototype IDs (0) 0 Alien Tech Used (0) 0 Bonus (643) 643 TOTAL SCORE: 3102 Bonus ------- High Alert Combat Kills 43 Met Imprinter 300 Was Imprinted 300 Cogmind --------- Core Integrity 0/800 Matter 59/400 Energy 250/250 System Corruption 0% Temperature Cool (0) Movement Walking (120) Location -6/Proximity Caves Parts ------- > --- POWER (2) -------- Light Ion Engine Light Ion Engine > --- PROPULSION (2) --- Aluminum Leg Aluminum Leg > --- UTILITY (4) ------ Heat Sink Sensor Array > --- WEAPON (4) ------- Light Assault Rifle Grenade Launcher > --- INVENTORY (0) ---- (None) Peak State ------------ > --- POWER ------------ Light Ion Engine Light Ion Engine > --- PROPULSION ------- Aluminum Leg Aluminum Leg > --- UTILITY ---------- Heat Sink Sensor Array > --- WEAPON ----------- Light Assault Rifle Grenade Launcher > --- INVENTORY -------- (None) [Rating: 8] Favorites ----------- Power Light Ion Engine Engine Light Ion Engine Propulsion Aluminum Leg Leg Aluminum Leg Utility Sensor Array Device Sensor Array Weapon Light Assault Rifle Energy Gun Small Laser Ballistic Gun Light Assault Rifle Launcher Grenade Launcher Build | -11 -10 -9 -9 -7 -6 ------- Run | Scr Mat Mat Min Zio Pro Slots Evolved 8 | 4 . . 4 . . Power 1 | 1 . . . . . Propulsion 1 | 1 . . . . . Utility 3 | 1 . . 2 . . Weapon 3 | 1 . . 2 . . Parts Attached 11 | 5 3 3 . . . Power 2 | 1 . 1 . . . Engine 2 | 1 . 1 . . . Core . | . . . . . . Reactor . | . . . . . . Propulsion 3 | 2 . 1 . . . Treads . | . . . . . . Leg 3 | 2 . 1 . . . Wheel . | . . . . . . Hover . | . . . . . . Flight . | . . . . . . Utility 2 | . 2 . . . . Device 2 | . 2 . . . . Storage . | . . . . . . Processor . | . . . . . . Hackware . | . . . . . . Protection . | . . . . . . Artifact . | . . . . . . Weapon 4 | 2 1 1 . . . Energy Gun 1 | 1 . . . . . Energy Cannon . | . . . . . . Ballistic Gun 2 | 1 . 1 . . . Ballistic Cannon . | . . . . . . Launcher 1 | . 1 . . . . Special Weapon . | . . . . . . Impact Weapon . | . . . . . . Slashing Weapon . | . . . . . . Piercing Weapon . | . . . . . . Special Melee Weapon . | . . . . . . Unidentified Prototypes . | . . . . . . Parts Lost . | . . . . . . Power . | . . . . . . Propulsion . | . . . . . . Utility . | . . . . . . Weapon . | . . . . . . Highest Loss Streak . | . . . . . . Average Slot Usage (%) 73 | . 78 94 100 66 66 Engine 16 | . 12 19 25 16 16 Leg 19 | . 25 24 25 16 16 Device 17 | . 16 25 25 16 16 Energy Gun 1 | . 6 . . . . Ballistic Gun 9 | . 12 12 12 8 8 Launcher 8 | . 5 12 12 8 8 Naked Turns . | . . . . . . Heaviest Build 12 | 5 9 12 12 12 12 Greatest Support 25 | 25 25 25 25 25 25 Greatest Overweight (x) . | . . . . . . Average Overweight (x) . | . . . . . . Largest Inventory Capacity . | . . . . . . Average Capacity . | . . . . . . Most Carried . | . . . . . . Average Carried . | . . . . . . Final Capacity . | . . . . . . Final Carried . | . . . . . . Class Distribution -------------------- 63% | Mutant 36% | Messiah-Mutant Dominant Class ---------------- Mutant | -10/Materials Mutant | -9/Materials Mutant | -9/Mines Mutant | -7/Zion Messiah-Mutant | -6/Proximity Caves Resources | -11 -10 -9 -9 -7 -6 ----------- Run | Scr Mat Mat Min Zio Pro Matter Collected 509 | 279 37 158 . 35 . Remotely . | . . . . . . Salvage Created 456 | . 105 351 . . . Parts 51 | . 9 42 . . . Haulers Intercepted . | . . . . . . Recyclers Shooed . | . . . . . . Parts Field Recycled . | . . . . . . Retrieved Matter . | . . . . . . Parts Self-Destructed . | . . . . . . Prevented . | . . . . . . Kills | -11 -10 -9 -9 -7 -6 ------- Run | Scr Mat Mat Min Zio Pro Combat Hostiles Destroyed 21 | . 6 15 . . . Guns 2 | . . 2 . . . AOE 19 | . 6 13 . . . Classes Destroyed 7 | . 2 5 . . . Worker 4 | . . 4 . . . Builder 4 | . . 4 . . . Recycler 1 | . . 1 . . . Watcher 3 | . 1 2 . . . Swarmer 4 | . . 4 . . . Grunt 12 | . 6 6 . . . Sentry 5 | . . 5 . . . Best Kill Streak 15 | . 7 15 . . . Combat Bots Only 10 | . 6 10 . . . Max Kills in Single Turn 5 | . 2 5 . . . Gunslinging . | . . . . . . Exploded 5 | . 2 5 . . . Melee . | . . . . . . Uniques/NPCs Destroyed . | . . . . . . Combat | -11 -10 -9 -9 -7 -6 -------- Run | Scr Mat Mat Min Zio Pro Damage Taken 993 | . 313 664 . . 16 Core 810 | . 259 539 . . 12 Absorbed by Shields . | . . . . . . Redirected to Core 575 | . 171 392 . . 12 Core Remaining (%) 83 | 100 67 . . . . Volleys Fired 54 | . 8 46 . . . Largest 2 | . 2 2 . . . Hottest 60 | . 60 50 . . . Shots Fired 94 | . 16 78 . . . Gun 55 | . 9 46 . . . Cannon . | . . . . . . Launcher 39 | . 7 32 . . . Special . | . . . . . . Kinetic 54 | . 8 46 . . . Thermal 1 | . 1 . . . . Explosive 39 | . 7 32 . . . Electromagnetic . | . . . . . . Robot Hit Streak 14 | . 7 14 . . . Robot Miss Streak 3 | . 1 3 . . . Penetration Max . | . . . . . . Secondary Targets . | . . . . . . Shots Hit Robots 77 | . 13 64 . . . Core Hits 63 | . 15 48 . . . Critical Hits . | . . . . . . Critical Kills . | . . . . . . Critical Parts Destroyed . | . . . . . . Melee Attacks . | . . . . . . Impact . | . . . . . . Slashing . | . . . . . . Piercing . | . . . . . . Sneak Attacks . | . . . . . . Combat Hostiles . | . . . . . . Follow-up Attacks . | . . . . . . Damage Inflicted 2251 | . 400 1851 . . . Guns 366 | . 68 298 . . . Cannons . | . . . . . . Explosions 1882 | . 332 1550 . . . Melee . | . . . . . . Ramming 3 | . . 3 . . . Kinetic 354 | . 56 298 . . . Thermal 180 | . 12 168 . . . Explosive 1714 | . 332 1382 . . . Electromagnetic . | . . . . . . Impact . | . . . . . . Slashing . | . . . . . . Piercing . | . . . . . . Highest Corruption . | . . . . . . Average Corruption . | . . . . . . Corruption Purged . | . . . . . . Overload Shots . | . . . . . . Overflow Damage 117 | . . 117 . . . Projectiles . | . . . . . . Explosions 117 | . . 117 . . . Melee . | . . . . . . Knockbacks . | . . . . . . Impact . | . . . . . . Kinetic . | . . . . . . Secondary . | . . . . . . Self-Inflicted Damage 219 | . 118 101 . . . Shots 11 | . 6 5 . . . Rammed . | . . . . . . Targets Rammed 1 | . . 1 . . . Kicked 1 | . . 1 . . . Crushed . | . . . . . . Highest Temperature 20 | . 20 9 . . . Average Temperature 6 | . 7 5 . . . Received Heat Transfer 351 | . 132 219 . . . Siege Activations . | . . . . . . Robots Corrupted . | . . . . . . Combat Hostiles . | . . . . . . Parts Fried . | . . . . . . Impact Corruptions . | . . . . . . Robots Melted . | . . . . . . Combat Hostiles . | . . . . . . Parts Melted . | . . . . . . Heat Transferred 125 | . 25 100 . . . Parts Sabotaged . | . . . . . . Parts Stolen . | . . . . . . Parts Stripped . | . . . . . . Power Chain Reactions . | . . . . . . Missiles Intercepted . | . . . . . . Alert | -11 -10 -9 -9 -7 -6 ------- Run | Scr Mat Mat Min Zio Pro Peak Influence 584 | . 188 584 192 . . Average Influence 162 | . 64 276 192 . . Maximum Alert Level 2 | . . 2 . . . Low Security (%) 76 | 100 100 50 100 . . Level 1 11 | . . 24 . . . Level 2 11 | . . 25 . . . Level 3 . | . . . . . . Level 4 . | . . . . . . Level 5 . | . . . . . . High Security . | . . . . . . Max Security . | . . . . . . Squads Dispatched 4 | . 2 2 . . . Investigation 2 | . 2 . . . . Extermination . | . . . . . . Reinforcement 2 | . . 2 . . . Assault . | . . . . . . Garrison . | . . . . . . Intercept . | . . . . . . Construction Impeded 1 | . . 1 . . . Haulers Reinforced . | . . . . . . Stealth | -11 -10 -9 -9 -7 -6 --------- Run | Scr Mat Mat Min Zio Pro Distress Signals 4 | . 1 3 . . . Communications Jammed . | . . . . . . Distress Signals . | . . . . . . Times Spotted 28 | . 8 19 . . 1 Peak Tracking Total 7 | . 7 5 . . . Tactical Retreats . | . . . . . . Traps | -11 -10 -9 -9 -7 -6 ------- Run | Scr Mat Mat Min Zio Pro Traps Triggered 1 | . 1 . . . . Indirectly . | . . . . . . Trap Hack Attempts . | . . . . . . Triggered . | . . . . . . Disarmed . | . . . . . . Reprogrammed 10 | . 10 . . . . Reused . | . . . . . . Traps Extracted . | . . . . . . Installed . | . . . . . . Triggered . | . . . . . . Machines | -11 -10 -9 -9 -7 -6 ---------- Run | Scr Mat Mat Min Zio Pro Machines Disabled 4 | . 1 3 . . . Max in Single Turn 1 | . 1 1 . . . Machines Sabotaged . | . . . . . . Garrisons Compromised . | . . . . . . Overloaded Fab Kills . | . . . . . . Fab Network Shutdowns . | . . . . . . Hacking | -11 -10 -9 -9 -7 -6 --------- Run | Scr Mat Mat Min Zio Pro Machines Accessed 4 | . 3 1 . . . Terminals 4 | . 3 1 . . . Fabricators . | . . . . . . Repair Stations . | . . . . . . Recycling Units . | . . . . . . Scanalyzers . | . . . . . . Garrison Access . | . . . . . . Total Hacks 13 | . 8 5 . . . Successful 7 | . 4 3 . . . Failed 6 | . 4 2 . . . Catastrophic 2 | . 1 1 . . . Database Lockouts . | . . . . . . Manual 5 | . 2 3 . . . Terminals 13 | . 8 5 . . . Fabricators . | . . . . . . Repair Stations . | . . . . . . Recycling Units . | . . . . . . Scanalyzers . | . . . . . . Garrison Access . | . . . . . . Terminal Hacks 7 | . 4 3 . . . Record 1 | . . 1 . . . Level Access Points 2 | . . 2 . . . Locate Traps 1 | . 1 . . . . Reprogram Traps 2 | . 2 . . . . Zone Layout 1 | . 1 . . . . Fabricator Hacks . | . . . . . . Repair Station Hacks . | . . . . . . Recycling Unit Hacks . | . . . . . . Scanalyzer . | . . . . . . Garrison Access Hacks . | . . . . . . Unauthorized Hacks . | . . . . . . Terminals . | . . . . . . Fabricators . | . . . . . . Repair Stations . | . . . . . . Recycling Units . | . . . . . . Scanalyzers . | . . . . . . Garrison Access . | . . . . . . Data Cores Recovered . | . . . . . . Used . | . . . . . . Hacking Detections 3 | . 2 1 . . . Full Trace Events 3 | . 2 1 . . . Feedback Events . | . . . . . . Feedback Blocked . | . . . . . . Robot Schematics Acquired . | . . . . . . Robots Built . | . . . . . . Matter . | . . . . . . Time . | . . . . . . Total Robot Build Rating . | . . . . . . Part Schematics Acquired . | . . . . . . Parts Built . | . . . . . . Matter . | . . . . . . Time . | . . . . . . Total Part Build Rating . | . . . . . . Parts Repaired . | . . . . . . Time . | . . . . . . Parts Recycled . | . . . . . . Recycled Matter . | . . . . . . Retrieved Matter . | . . . . . . Retrieved Components . | . . . . . . Parts Scanalyzed . | . . . . . . Part Schematics Acquired . | . . . . . . Parts Damaged . | . . . . . . Bothacking | -11 -10 -9 -9 -7 -6 ------------ Run | Scr Mat Mat Min Zio Pro Used RIF Installer . | . . . . . . Robots Hacked . | . . . . . . Non-combat . | . . . . . . Combat . | . . . . . . Robot Hacks Applied . | . . . . . . Relay Couplers Released . | . . . . . . Robots Rewired . | . . . . . . Allies Hacked . | . . . . . . Hacks Repelled . | . . . . . . Allies | -11 -10 -9 -9 -7 -6 -------- Run | Scr Mat Mat Min Zio Pro Total Allies 4 | . . . . 4 . Largest Group 4 | . . . . 4 4 Highest-Rated Group 153 | . . . . 153 153 Highest-Rated Ally 41 | . . . . 41 41 Total Orders . | . . . . . . Ally Attacks . | . . . . . . Total Damage . | . . . . . . Kills . | . . . . . . Allies Corrupted . | . . . . . . Allies Melted . | . . . . . . Intel | -11 -10 -9 -9 -7 -6 ------- Run | Scr Mat Mat Min Zio Pro Robot Analysis Total . | . . . . . . Derelict Logs Recovered . | . . . . . . Drone Launches . | . . . . . . Drone Recoveries . | . . . . . . Exploration | -11 -10 -9 -9 -7 -6 ------------- Run | Scr Mat Mat Min Zio Pro Turns Passed 1409 | 43 245 268 9 634 210 Spaces Moved 969 | 33 182 122 8 449 175 Core 5 | 5 . . . . . Treads . | . . . . . . Legs 964 | 28 182 122 8 449 175 Wheels . | . . . . . . Hover . | . . . . . . Flight . | . . . . . . Fastest Speed 50 | 50 120 120 120 120 120 Average Speed 119 | 109 120 120 120 120 120 Slowest Speed 120 | 120 120 120 120 120 120 Overloaded Moves . | . . . . . . Propulsion Burnouts . | . . . . . . Robots Hopped . | . . . . . . Cave-ins Triggered . | . . . . . . Exploration Rate (%) 24 | 3 33 20 8 56 27 Regions Visited 5 Branch Regions 3 Pre-discovered Areas . | . . . . . . Known Exits Taken . | . . . . . . Unknown Exits Taken 5 | 1 1 1 1 1 . Scrap Searched 1 | . . . . 1 . Spaces Dug . | . . . . . . Terrain Destroyed 190 | . 33 157 . . . Melee . | . . . . . . Projectile . | . . . . . . AOE 190 | . 33 157 . . . Actions | -11 -10 -9 -9 -7 -6 --------- Run | Scr Mat Mat Min Zio Pro Total 1130 | 37 193 174 7 544 175 Wait 97 | . . 1 . 96 . Move 964 | 32 181 121 7 448 175 Hop . | . . . . . . Pick Up . | . . . . . . Fast Attach 11 | 5 3 3 . . . Attach . | . . . . . . Detach . | . . . . . . Swap . | . . . . . . Drop 3 | . 1 2 . . . Fire 54 | . 8 46 . . . Melee . | . . . . . . Ram . | . . . . . . Kick 1 | . . 1 . . . Crush . | . . . . . . Escape Stasis . | . . . . . . Rewire . | . . . . . . Trap . | . . . . . . Miscellaneous . | . . . . . . Route ------- -11/Scrapyard -10/Materials -9/Materials (discovered 4 exits: Mat x3 / [*Min]) -9/Mines -7/Zion -6/Proximity Caves History --------- Turn | Location | Event 1 | -11/Scrapyard | Upgraded with Power slot (x1) 1 | -11/Scrapyard | Upgraded with Propulsion slot (x1) 1 | -11/Scrapyard | Upgraded with Utility slot (x1) 1 | -11/Scrapyard | Upgraded with Weapon slot (x1) 4 | -11/Scrapyard | Discovered new exit (range 16) 44 | -11/Scrapyard | Entered Materials 178 | -10/Materials | Discovered new exit (range 18) 289 | -10/Materials | Entered another Materials area 291 | -9/Materials | Reached level 2 291 | -9/Materials | Reached level 3 311 | -9/Materials | Build established: Mutant 359 | -9/Materials | Identified exit to Materials 387 | -9/Materials | Reached level 4 440 | -9/Materials | Core integrity fell below 50% 476 | -9/Materials | Core integrity fell below 20% 504 | -9/Materials | Reached level 5 525 | -9/Materials | Destroyed 10 combat bots 529 | -9/Materials | Discovered new exit (range 14) 557 | -9/Materials | Entered Mines 558 | -9/Mines | A Derelict revealed a hidden shortcut to a safe place 566 | -9/Mines | Upgraded with Utility slot (x2) 566 | -9/Mines | Upgraded with Weapon slot (x2) 566 | -9/Mines | Entered Zion 568 | -7/Zion | Reached level 6 868 | -7/Zion | Reached level 7 889 | -7/Zion | Imprinted 892 | -7/Zion | Declared Zion's savior 1094 | -7/Zion | Discovered new exit (range 8) 1187 | -7/Zion | Build established: Messiah-Mutant 1200 | -7/Zion | Entered Proximity Caves 1200 | -6/Proximity Caves | Accompanied by 4 allies 1202 | -6/Proximity Caves | Reached level 8 1202 | -6/Proximity Caves | Reached level 9 1202 | -6/Proximity Caves | Reached level 10 1410 | -6/Proximity Caves | Destroyed by G-67 Veteran with Plasma Rifle Last Messages --------------- 00904_ Imprinter is transmitting encrypted data deep into the caves. 00936_ GC-OSA(z) examines a few pieces of the Twisted Machinery. 00939_ PUBLIC SERVICE ANNOUNCEMENT: Quarantine Array scanned 1 system, cleaned 0. Y0-30Z(z): There were many lifts to the surface back at Complex 0b1, but we only know about one such exit over here at 0b10. A bunch of wild Derelicts snuck up to it and reportedly had to blast through a protective shell to access it. I wonder what they found on the surface... 01040_ System quarantine in progress... 01040_ PUBLIC SERVICE ANNOUNCEMENT: Quarantine Array scanned 2 systems, cleaned 1. 01094_ EXIT=FOUND LOCATION=UNKNOWN GOAL=ESCAPE 01202_ Reached level 8. 01202_ Reached level 9. 01202_ Reached level 10. 01406_ Slug penetrates DA-YYF(M). 01406_ DA-YYF(M) destroyed. Map ----- +----------------------------------------------------+ | | | | | | | | | | | | | | | | | ?????????????????????????????????????????????????? | | ?????????????????????????????????????????????????? | | ?????????????????????????????????????????????????? | | ?????????????????????????????????????????????????? | | ?????????????????????????????????????????????????? | | ?????????????????????????????????????????????????? | | ?????????????????????????????????????????????????? | | ?????????????????????????????????????????????????? | | ?????????????????????????????????????????????????? | | ?????????????????????????????????????????????????? | | ?????????????????????????????????????????????????? | | ?????????????????????????????????????????????????? | | ?????????????????????????????????????????????????? | | ?????????????????????????????????????????????????? | | ################??##########?????????????????????? | | |* #### #?????????????????????? | | !MM ##????????????????????? | | ####+?####### @ #????????????????????? | | ????????????# ##### #???????????????????? | | ????????????# ##???# #???????????????????? | | ????????????# ##????# #???????????????????? | | ????????????# #????? #???????????????????? | | ????????????# #????? ??????????????????? | | ????????????# #????? ?????????????????? | | ????????????# #????? ????????????????? | | ????????????# ????? ???????????????? | | ????????????# ???? ### ??????????????? | | ????????????# ??? ??? #?????????????? | | ????????????# ?? g??? ##?????????????? | | ????????????# ?? ??? ##??????????????? | | ????????????# ###? ???? ##???????????????? | | ????????????# #??? ???? #????????????????? | | ????????????# #??? ???? ????????????????? | | ???????????? ##??###???? # ????????????????? | | ???????????? ##???????????# ????????????????? | | ????????????#####????????????????????????????????? | | ?????????????????????????????????????????????????? | | ?????????????????????????????????????????????????? | | ?????????????????????????????????????????????????? | | ?????????????????????????????????????????????????? | | ?????????????????????????????????????????????????? | | ?????????????????????????????????????????????????? | +----------------------------------------------------+ Best States ------------- Heat Dissipation 35 Energy Generation 25 Energy Capacity 250 Matter Stores 329 Matter Capacity 400 Sight Range 20 Robot Scan Range 20 Terrain Scan Density 210 Resistance: KI 20 Resistance: TH 20 Resistance: EX 20 Resistance: EM 20 Resistance: I 20 Resistance: S 20 Resistance: P 20 Evasion (%) 40 Offensive Hacking 10 Item Schematics ----------------- None Robot Schematics ------------------ None Fabricated ------------ Nothing Alien Tech Used ----------------- None Achievements -------------- None Challenges ------------ None RPGLIKE | -11 -10 -9 -9 -7 -6 --------- Run | Scr Mat Mat Min Zio Pro Levels Raised 9 | . . 4 . 2 3 XP Earned 18319 | 4000 830 5569 500 2601 4819 XP Spent 10000 | 4000 . . 6000 . . Upgrades 30 | 21 . . 9 . . Power Slot 1 | 1 . . . . . Propulsion Slot 1 | 1 . . . . . Utility Slot 3 | 1 . . 2 . . Weapon Slot 3 | 1 . . 2 . . Core Integrity 4 | 4 . . . . . Energy Generation 2 | . . . 2 . . Energy Storage 2 | 2 . . . . . Matter Storage 2 | 2 . . . . . Mass Support 1 | 1 . . . . . Sight Range 4 | 2 . . 2 . . Sensor Range 5 | 4 . . 1 . . Terrain Scan Density 2 | 2 . . . . . Protomatter Created 211 | . 44 167 . . . Protomatter Decayed 38 | . 38 . . . . Game ------ Seed 123 Manual? 1 Play Time 00:16:12 Cumulative 34.0 hours Start 2020.02.25 @ 22:38:22 End 2020.02.27 @ 18:39:42 Sessions 3 Manual Loads 0 Difficulty Adventurer Special Mode Winter2019/RPGLIKE Game No. 37 Rogue 19 Adventurer 11 Explorer 7 Win Type - Total 0 Types 0/0/0/0/0/0/0 Lore% 21 Gallery% 34 Achievement% 27 Wizard Run 0 Options --------- ASCII 0 Keyboard 0 Movement Mouse Keybinds 0 Fullscreen 0 Font 16/SmallcapsGlow Map View 76x50 Tactical HUD 1 Map Filters NONE Filters NONE Steam 1 RUN: bdb2c0a4-580d-4cbb-a9de-0652a41e6b65